[Event "NK 2022"]
[Site "Groningen, Netherlands"]
[Date "2022.12.22"]
[Round "2.1"]
[White "De Winter, Arthur"]
[Black "Warmerdam, Max"]
[Result "0-1"]
[TimeControl "40/90; 30 minutes + increment 30 seconds from start"]
[WhiteTitle "FM"]
[BlackTitle "GM"]
[WhiteFideId "1069020"]
[BlackFideId "1048104"]
[WhiteElo "2368"]
[BlackElo "2619"]

1. e4 {[%clk 01:30:57]} {[%emt 00:00:02]} e5 {[%clk 01:30:54]} {[%emt
00:00:06]} 2. Nf3 {[%clk 01:31:22]} {[%emt 00:00:05]} Nc6 {[%clk 01:31:19]}
{[%emt 00:00:06]} 3. Bc4 {[%clk 01:31:47]} {[%emt 00:00:04]} Nf6 {[%clk
01:31:44]} {[%emt 00:00:06]} 4. d3 {[%clk 01:32:12]} {[%emt 00:00:04]} Bc5
{[%clk 01:31:44]} {[%emt 00:00:30]} 5. O-O {[%clk 01:32:28]} {[%emt 00:00:15]}
d6 {[%clk 01:30:13]} {[%emt 00:02:01]} 6. c3 {[%clk 01:32:54]} {[%emt
00:00:04]} a6 {[%clk 01:29:40]} {[%emt 00:01:03]} 7. Bg5 {[%clk 01:32:45]}
{[%emt 00:00:39]} h6 {[%clk 01:29:43]} {[%emt 00:00:26]} 8. Bh4 {[%clk
01:33:12]} {[%emt 00:00:03]} Ba7 {[%clk 01:27:15]} {[%emt 00:02:59]} 9. Nbd2
{[%clk 01:32:04]} {[%emt 00:01:38]} g5 {[%clk 01:21:56]} {[%emt 00:05:48]} 10.
Bg3 {[%clk 01:32:27]} {[%emt 00:00:07]} O-O {[%clk 01:22:12]} {[%emt 00:00:15]}
11. a4 {[%clk 01:32:26]} {[%emt 00:00:30]} Nh7 {[%clk 01:21:58]} {[%emt
00:00:45]} 12. h3 {[%clk 01:30:39]} {[%emt 00:02:16]} Kg7 {[%clk 01:14:42]}
{[%emt 00:07:46]} 13. b4 {[%emt 00:14:59]} f5 {[%clk 01:12:06]} 14. exf5 {[%clk
01:15:07]} {[%emt 00:04:39]} Bxf5 {[%clk 01:12:22]} {[%emt 00:00:15]} 15. b5
{[%clk 01:13:24]} {[%emt 00:02:13]} axb5 {[%clk 01:09:58]} {[%emt 00:02:53]} 16.
axb5 {[%clk 01:13:29]} {[%emt 00:00:26]} Ne7 {[%clk 01:10:20]} {[%emt
00:00:07]} 17. d4 {[%clk 01:06:16]} {[%emt 00:07:43]} e4 {[%clk 01:08:06]}
{[%emt 00:02:44]} 18. Ne1 {[%clk 01:06:28]} {[%emt 00:00:19]} Nf6 {[%clk
01:05:25]} {[%emt 00:03:10]} 19. Nc2 {[%clk 01:05:04]} {[%emt 00:01:55]} Bg6
{[%clk 00:47:00]} {[%emt 00:18:54]} 20. Ne3 {[%clk 00:46:57]} {[%emt 00:18:36]}
Bb6 {[%clk 00:44:12]} {[%emt 00:03:19]} 21. Bb3 {[%clk 00:37:08]} {[%emt
00:10:20]} Qd7 {[%clk 00:35:34]} {[%emt 00:09:07]} 22. Ndc4 {[%clk 00:26:48]}
{[%emt 00:10:50]} Qxb5 {[%clk 00:30:48]} {[%emt 00:05:16]} 23. Ba4 {[%clk
00:26:12]} {[%emt 00:01:06]} Qa6 {[%clk 00:31:10]} {[%emt 00:00:07]} 24. Ra3
{[%clk 00:22:13]} {[%emt 00:04:29]} Ba5 {[%clk 00:27:07]} {[%emt 00:04:34]} 25.
Qb1 {[%clk 00:13:58]} {[%emt 00:08:45]} b6 {[%clk 00:26:31]} {[%emt 00:01:06]}
26. Bb5 {[%clk 00:13:10]} {[%emt 00:01:18]} Qb7 {[%clk 00:20:28]} {[%emt
00:06:33]} 27. Qa1 {[%clk 00:12:22]} {[%emt 00:01:18]} Ned5 {[%clk 00:13:03]}
{[%emt 00:07:55]} 28. Nxa5 {[%clk 00:11:21]} {[%emt 00:01:31]} Rxa5 {[%clk
00:13:14]} {[%emt 00:00:19]} 29. Rxa5 {[%clk 00:10:56]} {[%emt 00:00:55]} bxa5
{[%clk 00:13:42]} {[%emt 00:00:02]} 30. Nxd5 {[%clk 00:10:39]} {[%emt
00:00:47]} Nxd5 {[%clk 00:13:30]} {[%emt 00:00:42]} 31. c4 {[%clk 00:10:47]}
{[%emt 00:00:21]} Nf4 {[%clk 00:10:43]} {[%emt 00:03:17]} 32. d5+ {[%clk
00:10:47]} {[%emt 00:00:31]} Kh7 {[%clk 00:08:14]} {[%emt 00:02:59]} 33. Bxf4
{[%clk 00:10:35]} {[%emt 00:00:42]} gxf4 {[%clk 00:08:34]} {[%emt 00:00:10]} 34.
Qxa5 {[%clk 00:10:31]} {[%emt 00:00:34]} Qb6 {[%clk 00:05:28]} {[%emt
00:03:35]} 35. Qxb6 {[%clk 00:08:43]} {[%emt 00:02:19]} cxb6 {[%clk 00:05:57]}
36. Ra1 {[%clk 00:09:04]} {[%emt 00:00:08]} Kg7 {[%clk 00:05:36]} {[%emt
00:00:52]} 37. Kf1 {[%clk 00:08:19]} {[%emt 00:01:15]} Kf6 {[%clk 00:05:33]}
{[%emt 00:00:33]} 38. Ra7 {[%clk 00:06:37]} {[%emt 00:02:11]} Bf5 {[%clk
00:01:40]} {[%emt 00:04:23]} 39. Rb7 {[%clk 00:03:01]} {[%emt 00:04:07]} Ra8
{[%clk 00:02:05]} {[%emt 00:00:05]} 40. Rxb6 {[%clk 00:02:52]} {[%emt
00:00:38]} Ra1+ {[%clk 00:02:30]} {[%emt 00:00:05]} 41. Ke2 {[%clk 00:03:18]}
{[%emt 00:00:03]} Ra2+ {[%clk 00:28:19]} {[%emt 00:04:41]} 42. Ke1 {[%clk
00:33:17]} {[%emt 00:00:32]} Ke5 {[%clk 00:20:20]} {[%emt 00:08:29]} 43. c5
{[%clk 00:28:53]} {[%emt 00:04:55]} dxc5 {[%clk 00:17:15]} {[%emt 00:03:35]} 44.
d6 {[%clk 00:27:53]} {[%emt 00:01:30]} Rb2 {[%clk 00:17:10]} {[%emt 00:00:34]}
45. Rb8 {[%clk 00:21:07]} {[%emt 00:07:15]} Kxd6 {[%clk 00:16:01]} {[%emt
00:01:40]} 46. Rf8 {[%clk 00:20:06]} {[%emt 00:01:31]} Ke5 {[%clk 00:16:01]}
{[%emt 00:00:30]} 47. Be2 {[%clk 00:18:47]} {[%emt 00:01:48]} Rb1+ {[%clk
00:15:22]} {[%emt 00:01:10]} 48. Kd2 {[%clk 00:16:51]} {[%emt 00:02:27]} Rb2+
{[%clk 00:15:43]} {[%emt 00:00:08]} 49. Ke1 {[%clk 00:17:13]} {[%emt 00:00:07]}
e3 {[%clk 00:15:58]} {[%emt 00:00:16]} 50. Re8+ {[%clk 00:15:10]} {[%emt
00:02:33]} Kd4 {[%clk 00:15:05]} {[%emt 00:01:23]} 51. Rd8+ {[%clk 00:14:59]}
{[%emt 00:00:41]} Ke5 {[%clk 00:15:21]} {[%emt 00:00:14]} 52. Re8+ {[%clk
00:15:18]} {[%emt 00:00:10]} Kd4 {[%clk 00:15:46]} {[%emt 00:00:06]} 53. Rd8+
{[%clk 00:15:42]} {[%emt 00:00:05]} Kc3 {[%clk 00:14:40]} {[%emt 00:01:37]} 54.
fxe3 {[%clk 00:15:30]} {[%emt 00:00:42]} fxe3 {[%clk 00:15:05]} {[%emt
00:00:05]} 55. Rd5 {[%clk 00:15:55]} {[%emt 00:00:04]} Rb1+ {[%clk 00:13:17]}
{[%emt 00:02:18]} 56. Bd1 {[%clk 00:16:12]} {[%emt 00:00:13]} Bd3 {[%clk
00:13:07]} {[%emt 00:00:41]} 57. Rxc5+ {[%clk 00:16:34]} {[%emt 00:00:08]} Kd4
{[%clk 00:13:32]} {[%emt 00:00:05]} 58. Rc8 {[%clk 00:16:06]} {[%emt 00:00:57]}
Bb5 {[%clk 00:06:10]} {[%emt 00:07:52]} 59. Rd8+ {[%clk 00:13:56]} {[%emt
00:02:40]} Ke4 {[%clk 00:06:36]} {[%emt 00:00:05]} 60. Rd6 {[%clk 00:13:23]}
{[%emt 00:01:03]} e2 {[%clk 00:06:22]} {[%emt 00:00:43]} 61. Re6+ {[%clk
00:13:31]} {[%emt 00:00:22]} Kf4 {[%clk 00:06:46]} {[%emt 00:00:05]} 62. Rxe2
{[%clk 00:13:55]} {[%emt 00:00:07]} Bxe2 {[%clk 00:07:13]} {[%emt 00:00:04]} 63.
Kxe2 {[%clk 00:14:21]} {[%emt 00:00:05]} Kg3 {[%clk 00:07:20]} {[%emt
00:00:23]} 64. Kd2 {[%clk 00:13:09]} {[%emt 00:01:42]} Rb2+ {[%clk 00:06:47]}
{[%emt 00:01:03]} 65. Ke3 {[%clk 00:13:20]} {[%emt 00:00:18]} Rxg2 {[%clk
00:07:06]} {[%emt 00:00:11]} 66. Bg4 {[%clk 00:13:10]} {[%emt 00:00:40]} Ra2
{[%clk 00:07:07]} {[%emt 00:00:28]} 67. Be6 {[%clk 00:11:31]} {[%emt 00:02:09]}
Ra5 {[%clk 00:07:21]} {[%emt 00:00:16]} 68. Ke4 {[%clk 00:10:28]} {[%emt
00:01:33]} h5 {[%clk 00:07:42]} {[%emt 00:00:09]} 69. Bf5 {[%clk 00:10:20]}
{[%emt 00:00:39]} h4 {[%clk 00:07:56]} {[%emt 00:00:15]} 70. Bd7 {[%clk
00:10:30]} {[%emt 00:00:20]} Ra7 {[%clk 00:07:51]} {[%emt 00:00:36]} 71. Bf5
{[%clk 00:10:27]} {[%emt 00:00:32]} Re7+ {[%clk 00:07:52]} {[%emt 00:00:29]} 72.
Kd3 {[%clk 00:10:32]} {[%emt 00:00:25]} Kf4 {[%clk 00:07:55]} {[%emt 00:00:28]}
73. Bg4 {[%clk 00:10:03]} {[%emt 00:00:58]} Rg7 {[%clk 00:05:18]} {[%emt
00:03:07]} 74. Bc8 {[%clk 00:09:05]} {[%emt 00:01:29]} Rg8 {[%clk 00:05:38]}
{[%emt 00:00:10]} 75. Be6 {[%clk 00:08:35]} {[%emt 00:00:59]} Rd8+ {[%clk
00:05:59]} {[%emt 00:00:09]} 76. Kc3 {[%clk 00:08:45]} {[%emt 00:00:20]} Kg3
{[%clk 00:05:51]} {[%emt 00:00:39]} 77. Bg4 {[%clk 00:08:36]} {[%emt 00:00:39]}
Kh2 {[%clk 00:06:16]} {[%emt 00:00:04]} 78. Kc2 {[%clk 00:06:08]} {[%emt
00:02:58]} Kg2 {[%clk 00:06:41]} {[%emt 00:00:05]} 79. Bf5 {[%clk 00:04:09]}
{[%emt 00:02:29]} Rf8 {[%clk 00:05:53]} {[%emt 00:01:19]} 80. Bd7 {[%clk
00:04:04]} {[%emt 00:00:34]} Rf7 {[%clk 00:06:15]} {[%emt 00:00:08]} 81. Bg4
{[%clk 00:03:07]} {[%emt 00:01:26]} Rg7 {[%clk 00:06:34]} {[%emt 00:00:12]} 82.
Bf5 {[%clk 00:03:15]} {[%emt 00:00:22]} Rg3 {[%clk 00:06:57]} {[%emt 00:00:08]}
83. Kd2 {[%clk 00:03:32]} {[%emt 00:00:13]} Rxh3 {[%clk 00:07:20]} {[%emt
00:00:07]} 0-1

[Event "NK 2022"]
[Site "Groningen, Netherlands"]
[Date "2022.12.22"]
[Round "2.2"]
[White "L'Ami, Erwin"]
[Black "Timmermans, Mark"]
[Result "1-0"]
[TimeControl "40/90; 30 minutes + increment 30 seconds from start"]
[WhiteTitle "GM"]
[BlackTitle "IM"]
[WhiteFideId "1007998"]
[BlackFideId "1026399"]
[WhiteElo "2627"]
[BlackElo "2391"]

1. d4 {[%clk 01:30:57]} {[%emt 00:00:02]} Nf6 {[%clk 01:30:55]} {[%emt
00:00:06]} 2. c4 {[%clk 01:31:16]} {[%emt 00:00:10]} e6 {[%clk 01:31:18]}
{[%emt 00:00:07]} 3. Nc3 {[%clk 01:31:00]} {[%emt 00:00:46]} Bb4 {[%clk
01:31:40]} {[%emt 00:00:08]} 4. e3 {[%clk 01:31:20]} {[%emt 00:00:11]} O-O
{[%clk 01:31:19]} {[%emt 00:00:51]} 5. Bd3 {[%clk 01:31:06]} {[%emt 00:00:43]}
Re8 {[%clk 01:31:11]} {[%emt 00:00:38]} 6. a3 {[%clk 01:26:31]} {[%emt
00:05:05]} Bxc3+ {[%clk 01:26:26]} {[%emt 00:05:15]} 7. bxc3 {[%clk 01:26:52]}
{[%emt 00:00:10]} d6 {[%clk 01:26:49]} {[%emt 00:00:07]} 8. Ne2 {[%clk
01:24:43]} {[%emt 00:02:39]} b6 {[%clk 01:20:07]} {[%emt 00:07:13]} 9. Ng3
{[%clk 01:18:17]} {[%emt 00:06:54]} Nc6 {[%clk 01:15:52]} {[%emt 00:04:46]} 10.
O-O {[%clk 01:13:51]} {[%emt 00:04:55]} Ba6 {[%clk 01:13:45]} {[%emt 00:02:38]}
11. e4 {[%clk 01:12:14]} {[%emt 00:02:07]} Na5 {[%clk 01:09:04]} {[%emt
00:05:12]} 12. Bg5 {[%clk 01:04:09]} {[%emt 00:08:35]} h6 {[%clk 01:06:15]}
{[%emt 00:03:19]} 13. Bxf6 {[%clk 00:57:42]} {[%emt 00:06:57]} Qxf6 {[%clk
01:06:05]} {[%emt 00:00:40]} 14. Qe2 {[%clk 00:54:39]} {[%emt 00:03:32]} e5
{[%clk 00:57:25]} {[%emt 00:09:10]} 15. f4 {[%clk 00:53:24]} {[%emt 00:01:45]}
Qg6 {[%clk 00:46:00]} {[%emt 00:11:56]} 16. Rad1 {[%clk 00:41:23]} {[%emt
00:12:30]} Bc8 {[%clk 00:40:18]} {[%emt 00:06:13]} 17. Qc2 {[%clk 00:37:50]}
{[%emt 00:04:02]} Ba6 {[%clk 00:38:50]} {[%emt 00:01:58]} 18. c5 {[%clk
00:32:42]} {[%emt 00:05:39]} Bxd3 {[%clk 00:34:57]} {[%emt 00:04:23]} 19. Rxd3
{[%clk 00:32:59]} {[%emt 00:00:12]} d5 {[%clk 00:28:15]} {[%emt 00:07:13]} 20.
dxe5 {[%clk 00:23:21]} {[%emt 00:10:08]} dxe4 {[%clk 00:28:22]} {[%emt
00:00:22]} 21. Rd4 {[%clk 00:23:08]} {[%emt 00:00:43]} f5 {[%clk 00:26:47]}
{[%emt 00:02:05]} 22. exf6 {[%clk 00:22:14]} {[%emt 00:01:25]} Qxf6 {[%clk
00:27:09]} {[%emt 00:00:09]} 23. f5 {[%clk 00:20:18]} {[%emt 00:02:25]} Qf7
{[%clk 00:20:02]} {[%emt 00:07:37]} 24. f6 {[%clk 00:18:26]} {[%emt 00:02:21]}
Nb3 {[%clk 00:17:01]} {[%emt 00:03:32]} 25. Rd7 {[%clk 00:15:53]} {[%emt
00:03:03]} Qxd7 {[%clk 00:14:39]} {[%emt 00:02:52]} 26. f7+ {[%clk 00:16:15]}
{[%emt 00:00:08]} Qxf7 {[%clk 00:14:41]} {[%emt 00:00:27]} 27. Rxf7 {[%clk
00:16:37]} Kxf7 {[%clk 00:15:08]} {[%emt 00:00:11]} 28. Qxb3+ {[%clk 00:16:57]}
{[%emt 00:00:10]} Kf8 {[%clk 00:13:13]} {[%emt 00:02:25]} 29. cxb6 {[%clk
00:15:17]} {[%emt 00:02:11]} axb6 {[%clk 00:12:33]} {[%emt 00:01:10]} 30. Qb4+
{[%clk 00:15:41]} {[%emt 00:00:06]} Kg8 {[%clk 00:10:42]} {[%emt 00:02:21]} 31.
Nxe4 {[%clk 00:15:32]} {[%emt 00:00:38]} Kh8 {[%clk 00:11:09]} {[%emt
00:00:04]} 32. a4 {[%clk 00:13:07]} {[%emt 00:02:55]} Re5 {[%clk 00:10:06]}
{[%emt 00:01:32]} 33. h3 {[%clk 00:08:50]} {[%emt 00:04:47]} Rea5 {[%clk
00:09:43]} {[%emt 00:00:54]} 34. Qe7 {[%clk 00:08:55]} {[%emt 00:00:25]} Rxa4
{[%clk 00:09:53]} {[%emt 00:00:20]} 35. Ng3 {[%clk 00:09:10]} {[%emt 00:00:14]}
R4a5 {[%clk 00:05:53]} {[%emt 00:04:31]} 36. Qxc7 {[%clk 00:06:56]} {[%emt
00:02:44]} Rc5 {[%clk 00:05:55]} {[%emt 00:00:28]} 37. Qb7 {[%clk 00:06:05]}
{[%emt 00:01:21]} Rg8 {[%clk 00:02:33]} {[%emt 00:03:52]} 38. Ne4 {[%clk
00:04:33]} {[%emt 00:02:02]} Rc4 {[%clk 00:02:58]} {[%emt 00:00:04]} 39. Qd5
{[%clk 00:03:28]} {[%emt 00:01:35]} Rgc8 {[%clk 00:01:36]} {[%emt 00:01:53]} 40.
Qb7 {[%clk 00:00:57]} {[%emt 00:03:01]} Rg8 {[%clk 00:00:50]} {[%emt 00:01:15]}
41. Kh2 {[%clk 00:29:57]} {[%emt 00:01:30]} b5 {[%clk 00:27:44]} {[%emt
00:03:37]} 42. Qe7 {[%clk 00:26:41]} {[%emt 00:03:44]} Rcc8 {[%clk 00:25:31]}
{[%emt 00:02:45]} 43. Qd7 {[%clk 00:24:55]} {[%emt 00:02:15]} Rc4 {[%clk
00:23:06]} {[%emt 00:02:55]} 44. Qf5 {[%clk 00:24:52]} {[%emt 00:00:34]} Rb8
{[%clk 00:13:37]} {[%emt 00:09:59]} 45. Nd6 {[%clk 00:23:31]} {[%emt 00:01:50]}
Rxc3 {[%clk 00:13:59]} {[%emt 00:00:09]} 46. Nf7+ {[%clk 00:23:49]} {[%emt
00:00:12]} Kg8 {[%clk 00:14:24]} {[%emt 00:00:05]} 47. Nxh6+ {[%clk 00:24:10]}
{[%emt 00:00:09]} Kh8 {[%clk 00:14:50]} {[%emt 00:00:04]} 48. Nf7+ {[%clk
00:23:54]} {[%emt 00:00:46]} Kg8 {[%clk 00:15:12]} {[%emt 00:00:07]} 49. Ng5
{[%clk 00:24:04]} {[%emt 00:00:20]} Rcc8 {[%clk 00:14:46]} {[%emt 00:00:57]} 50.
Qf7+ {[%clk 00:24:16]} {[%emt 00:00:18]} Kh8 {[%clk 00:15:11]} {[%emt
00:00:05]} 51. Ne6 {[%clk 00:24:41]} {[%emt 00:00:05]} 1-0

[Event "NK 2022"]
[Site "Groningen, Netherlands"]
[Date "2022.12.22"]
[Round "2.3"]
[White "Lai, Hing Ting"]
[Black "Van den Doel, Erik"]
[Result "0-1"]
[TimeControl "40/90; 30 minutes + increment 30 seconds from start"]
[WhiteTitle "IM"]
[BlackTitle "GM"]
[WhiteFideId "1038257"]
[BlackFideId "1003720"]
[WhiteElo "2486"]
[BlackElo "2582"]

1. c4 {[%clk 01:30:57]} {[%emt 00:00:03]} c6 {[%clk 01:27:33]} {[%emt
00:03:27]} 2. Nf3 {[%clk 01:31:14]} {[%emt 00:00:13]} d5 {[%clk 01:27:57]}
{[%emt 00:00:07]} 3. d4 {[%clk 01:31:30]} {[%emt 00:00:13]} Nf6 {[%clk
01:28:20]} {[%emt 00:00:06]} 4. Nbd2 {[%clk 01:31:45]} {[%emt 00:00:17]} Bf5
{[%clk 01:20:38]} {[%emt 00:08:11]} 5. Nh4 {[%clk 01:31:40]} {[%emt 00:00:34]}
Be4 {[%clk 01:20:06]} {[%emt 00:01:03]} 6. Qb3 {[%clk 01:30:33]} {[%emt
00:01:38]} Qc7 {[%clk 01:07:43]} {[%emt 00:12:52]} 7. Nxe4 {[%clk 01:24:41]}
{[%emt 00:06:22]} Nxe4 {[%clk 01:05:59]} {[%emt 00:02:14]} 8. Nf3 {[%clk
01:24:42]} {[%emt 00:00:29]} e6 {[%clk 00:56:04]} {[%emt 00:10:26]} 9. Nd2
{[%clk 01:23:02]} {[%emt 00:02:09]} Nf6 {[%clk 00:52:41]} {[%emt 00:03:54]} 10.
g3 {[%clk 01:15:57]} {[%emt 00:07:34]} a5 {[%clk 00:48:17]} {[%emt 00:04:54]}
11. a3 {[%clk 01:12:41]} {[%emt 00:03:46]} a4 {[%clk 00:47:50]} {[%emt
00:00:57]} 12. Qc2 {[%clk 01:07:00]} {[%emt 00:06:11]} Qb6 {[%clk 00:43:12]}
{[%emt 00:05:08]} 13. cxd5 {[%clk 00:58:19]} {[%emt 00:09:11]} exd5 {[%clk
00:37:23]} {[%emt 00:06:19]} 14. e3 {[%clk 00:55:17]} {[%emt 00:03:33]} Nbd7
{[%clk 00:34:52]} {[%emt 00:03:00]} 15. Nb1 {[%clk 00:53:46]} {[%emt 00:02:01]}
Be7 {[%clk 00:29:17]} {[%emt 00:06:05]} 16. Bd3 {[%clk 00:51:04]} {[%emt
00:03:11]} O-O {[%clk 00:27:47]} {[%emt 00:02:00]} 17. O-O {[%clk 00:50:40]}
{[%emt 00:00:55]} Rfe8 {[%clk 00:27:42]} {[%emt 00:00:35]} 18. Bd2 {[%clk
00:48:36]} {[%emt 00:02:34]} g6 {[%clk 00:21:08]} {[%emt 00:07:05]} 19. Nc3
{[%clk 00:46:04]} {[%emt 00:03:01]} Qa7 {[%clk 00:21:33]} {[%emt 00:00:05]} 20.
Rac1 {[%clk 00:44:19]} {[%emt 00:02:16]} Bf8 {[%clk 00:21:01]} {[%emt
00:01:01]} 21. Kg2 {[%clk 00:39:04]} {[%emt 00:05:45]} Nb6 {[%clk 00:17:26]}
{[%emt 00:04:05]} 22. f3 {[%clk 00:38:04]} {[%emt 00:01:30]} Nbd7 {[%clk
00:13:23]} {[%emt 00:04:33]} 23. g4 {[%clk 00:36:19]} {[%emt 00:02:15]} b5
{[%clk 00:11:38]} {[%emt 00:02:16]} 24. g5 {[%clk 00:31:14]} {[%emt 00:05:34]}
Nh5 {[%clk 00:12:03]} {[%emt 00:00:05]} 25. Ne2 {[%clk 00:31:40]} {[%emt
00:00:05]} Rac8 {[%clk 00:10:51]} {[%emt 00:01:41]} 26. f4 {[%clk 00:22:29]}
{[%emt 00:09:42]} Nb6 {[%clk 00:10:25]} {[%emt 00:00:56]} 27. f5 {[%clk
00:21:13]} {[%emt 00:01:46]} Nc4 {[%clk 00:09:43]} {[%emt 00:01:12]} 28. Bxc4
{[%clk 00:09:23]} {[%emt 00:12:20]} bxc4 {[%clk 00:09:56]} {[%emt 00:00:17]} 29.
Nc3 {[%clk 00:08:56]} {[%emt 00:00:57]} Ng7 {[%clk 00:06:10]} {[%emt 00:04:15]}
30. fxg6 {[%clk 00:07:23]} {[%emt 00:02:03]} hxg6 {[%clk 00:06:18]} {[%emt
00:00:23]} 31. Kh1 {[%clk 00:06:09]} {[%emt 00:01:44]} Qd7 {[%clk 00:06:17]}
{[%emt 00:00:31]} 32. Rf2 {[%clk 00:05:57]} {[%emt 00:00:41]} Qh3 {[%clk
00:04:18]} {[%emt 00:02:29]} 33. Rcf1 {[%clk 00:05:12]} {[%emt 00:01:16]} Nf5
{[%clk 00:04:13]} {[%emt 00:00:34]} 34. Rf3 {[%clk 00:05:31]} {[%emt 00:00:11]}
Qg4 {[%clk 00:04:14]} {[%emt 00:00:29]} 35. Rf4 {[%clk 00:02:19]} {[%emt
00:03:43]} Qh5 {[%clk 00:04:17]} {[%emt 00:00:27]} 36. Rxf5 {[%clk 00:01:47]}
{[%emt 00:01:02]} gxf5 {[%clk 00:04:42]} {[%emt 00:00:05]} 37. Qxf5 {[%clk
00:01:54]} {[%emt 00:00:23]} Rb8 {[%clk 00:04:01]} {[%emt 00:01:12]} 38. Bc1
{[%clk 00:01:34]} {[%emt 00:00:49]} Bd6 {[%clk 00:02:56]} {[%emt 00:01:34]} 39.
Rf2 {[%clk 00:01:20]} {[%emt 00:00:45]} Re6 {[%clk 00:02:03]} {[%emt 00:01:23]}
40. Qf3 {[%clk 00:00:33]} {[%emt 00:01:16]} Qxf3+ {[%clk 00:01:03]} {[%emt
00:01:31]} 41. Rxf3 {[%clk 00:00:58]} {[%emt 00:00:05]} Kg7 {[%clk 00:10:16]}
{[%emt 00:21:18]} 42. h4 {[%clk 00:24:25]} {[%emt 00:07:01]} Rh8 {[%clk
00:09:07]} {[%emt 00:01:39]} 43. Rh3 {[%clk 00:24:30]} {[%emt 00:00:26]} f6
{[%clk 00:08:34]} {[%emt 00:01:03]} 44. Kg2 {[%clk 00:22:37]} {[%emt 00:02:23]}
fxg5 {[%clk 00:07:55]} {[%emt 00:01:09]} 45. hxg5 {[%clk 00:22:51]} {[%emt
00:00:16]} Rxh3 {[%clk 00:08:09]} {[%emt 00:00:15]} 46. Kxh3 {[%clk 00:23:16]}
{[%emt 00:00:06]} Re8 {[%clk 00:06:02]} {[%emt 00:02:37]} 47. Kg4 {[%clk
00:20:59]} {[%emt 00:02:47]} Kg6 {[%clk 00:06:17]} {[%emt 00:00:15]} 48. Nxa4
{[%clk 00:19:15]} {[%emt 00:02:14]} Rh8 {[%clk 00:04:43]} {[%emt 00:02:04]} 49.
Bd2 {[%clk 00:18:15]} {[%emt 00:01:30]} Rh5 {[%clk 00:04:38]} {[%emt 00:00:33]}
50. Nc5 {[%clk 00:11:44]} {[%emt 00:07:02]} Rxg5+ {[%clk 00:04:37]} {[%emt
00:00:32]} 51. Kf3 {[%clk 00:12:08]} {[%emt 00:00:06]} Rh5 {[%clk 00:02:09]}
{[%emt 00:02:58]} 52. Nb7 {[%clk 00:10:26]} {[%emt 00:02:12]} Rh2 {[%clk
00:01:58]} {[%emt 00:00:40]} 53. Bc3 {[%clk 00:10:42]} {[%emt 00:00:15]} Bc7
{[%clk 00:02:07]} {[%emt 00:00:21]} 54. a4 {[%clk 00:10:31]} {[%emt 00:00:41]}
Rh3+ {[%clk 00:01:33]} {[%emt 00:01:03]} 55. Ke2 {[%clk 00:10:40]} {[%emt
00:00:21]} Rh8 {[%clk 00:01:38]} {[%emt 00:00:25]} 56. Kf3 {[%clk 00:09:44]}
{[%emt 00:01:27]} Rf8+ {[%clk 00:01:52]} {[%emt 00:00:15]} 57. Kg4 {[%clk
00:09:45]} {[%emt 00:00:30]} Ra8 {[%clk 00:02:05]} {[%emt 00:00:16]} 58. Nc5
{[%clk 00:09:11]} {[%emt 00:01:05]} Bd6 {[%clk 00:02:20]} {[%emt 00:00:15]} 59.
Nb7 {[%clk 00:09:12]} {[%emt 00:00:29]} Bc7 {[%clk 00:02:43]} {[%emt 00:00:07]}
60. Nc5 {[%clk 00:09:33]} {[%emt 00:00:08]} Bd6 {[%clk 00:02:56]} {[%emt
00:00:17]} 61. Nb7 {[%clk 00:09:58]} {[%emt 00:00:05]} Be7 {[%clk 00:03:02]}
{[%emt 00:00:24]} 62. a5 {[%clk 00:07:17]} {[%emt 00:03:13]} Kf6 {[%clk
00:02:54]} {[%emt 00:00:37]} 63. Kf3 {[%clk 00:05:43]} {[%emt 00:02:04]} Ke6
{[%clk 00:03:17]} {[%emt 00:00:07]} 64. Ke2 {[%clk 00:05:01]} {[%emt 00:01:12]}
Ra7 {[%clk 00:02:24]} {[%emt 00:01:23]} 65. Nc5+ {[%clk 00:05:21]} {[%emt
00:00:10]} Bxc5 {[%clk 00:02:50]} {[%emt 00:00:04]} 66. dxc5 {[%clk 00:05:47]}
{[%emt 00:00:04]} Rb7 {[%clk 00:03:03]} {[%emt 00:00:17]} 67. Kd2 {[%clk
00:05:19]} {[%emt 00:00:58]} Rb5 {[%clk 00:03:26]} {[%emt 00:00:07]} 68. Kc2
{[%clk 00:05:29]} {[%emt 00:00:20]} Kd7 {[%clk 00:03:37]} {[%emt 00:00:18]} 0-1